{"text_format":"3","workbook":"xlsx","n_sheets":4,"sheets":["เริ่ม","รายจ่าย","รายได้","สรุป"],"not_rendered":{"charts":1,"defined_names":2},"read":"whole","date_system":"1900"}

{"sheet":"เริ่ม","index":0,"n_rows":8,"n_cols":2,"rows_kept":8}
[null,"เกี่ยวกับเทมเพลตนี้"]
[null,"ใช้เวิร์กบุ๊กงบประมาณจัดกิจกรรมนี้เพื่อติดตามค่าใช้จ่ายที่เกิดขึ้นและรายได้ที่ได้รับผ่านทางกิจกรรม"]
[null,"กรอกชื่อกิจกรรม แล้วใส่รายละเอียดในตารางในเวิร์กชีตค่าใช้จ่ายและเวิร์กชีตรายได้"]
[null,"ค่าใช้จ่ายทั้งหมดและรายได้ทั้งหมดจะถูกคำนวณโดยอัตโนมัติ"]
[null,"สรุปและแผนภูมิของกำไรขาดทุนจะอัปเดตโดยอัตโนมัติในเวิร์กชีตสรุป"]
[null,"หมายเหตุ: "]
[null,"คำแนะนำเพิ่มเติมจะอยู่ในคอลัมน์ A ในเวิร์กชีตแต่ละแผ่น ข้อความนี้ได้ถูกซ่อนไว้โดยตั้งใจ เมื่อต้องการเอาข้อความออก ให้เลือกคอลัมน์ A แล้วเลือก ลบ เมื่อต้องการยกเลิกการซ่อนข้อความ ให้เลือกคอลัมน์ A แล้วเปลี่ยนสีฟอนต์"]
[null,"เมื่อต้องการเรียนรู้เพิ่มเติมเกี่ยวกับตาราง ให้กด SHIFT แล้วตามด้วย F10 ภายในตาราง แล้วเลือกตัวเลือก ตาราง จากนั้นเลือก ข้อความแสดงแทน"]

{"sheet":"รายจ่าย","index":1,"n_rows":33,"n_cols":8,"rows_kept":33,"merged":[[0,5,0,7],[1,1,1,7],[2,6,2,7]]}
["ใส่ค่าใช้จ่ายโดยประมาณและค่าใช้จ่ายจริงสำหรับแต่ละประเภทในตารางที่สอดคล้องกันในเวิร์กชีตนี้ ค่าใช้จ่ายทั้งหมดจะถูกคำนวณโดยอัตโนมัติ คำแนะนำที่เป็นประโยชน์เกี่ยวกับวิธีใช้เวิร์กชีตนี้อยู่ในเซลล์ในคอลัมน์นี้ ใช้ลูกศรลงเพื่อเริ่มต้นใช้งาน"]
["ใส่ชื่อกิจกรรมในเซลล์ด้านขวาเพื่อกำหนดชื่อของเวิร์กชีตนี้และเวิร์กชีตอื่นๆ เอง","งบประมาณจัดกิจกรรมสำหรับ \nชื่อกิจกรรม"]
["ป้ายชื่อค่าใช้จ่ายอยู่ในเซลล์ G3",{"$nulls":5}," ค่าใช้จ่าย"]
["ป้ายชื่อค่าใช้จ่ายโดยประมาณอยู่ในเซลล์ G4 และป้ายชื่อค่าใช้จ่ายจริงอยู่ในเซลล์ H4",{"$nulls":5},"ค่าใช้จ่ายโดยประมาณ","ค่าใช้จ่ายจริง"]
["ป้ายชื่อค่าใช้จ่ายทั้งหมดอยู่ในเซลล์ด้านขวา ค่าใช้จ่ายทั้งหมดโดยประมาณจะถูกคำนวณโดยอัตโนมัติในเซลล์ G5 ค่าใช้จ่ายทั้งหมดตามจริงและแถบข้อมูลที่แสดงค่าใช้จ่ายทั้งหมดตามจริงจะอัปเดตโดยอัตโนมัติในเซลล์ H5 คำแนะนำถัดไปอยู่ในเซลล์ A7","ค่าใช้จ่ายทั้งหมด",{"$nulls":4},{"$f":"SUM(C12,C20,C26,C33,G12,G20,G25)","v":{"v":1145,"d":"฿1,145.00"}},{"$f":"SUM(D12,D20,D26,D33,H12,H20,H25)","v":{"v":395,"d":"฿395.00"}}]
[]
["ใส่ค่าใช้จ่ายด้านสถานที่ในตารางโดยเริ่มจากเซลล์ด้านขวา และค่าใช้จ่ายด้านอาหารว่างในตารางโดยเริ่มจากเซลล์ F7 คำแนะนำถัดไปอยู่ในเซลล์ A14","สถานที่","ค่าใช้จ่ายโดยประมาณ","ค่าใช้จ่ายจริง",null,"อาหารว่าง","ค่าใช้จ่ายโดยประมาณ","ค่าใช้จ่ายจริง"]
[null,"ค่าห้องและหอประชุม",{"v":500,"d":"฿500.00"},{"v":250,"d":"฿250.00"},null,"อาหาร"]
[null,"เจ้าหน้าที่ของสถานที่",{"v":400,"d":"฿400.00"},{"v":50,"d":"฿50.00"},null,"เครื่องดื่ม"]
[null,"อุปกรณ์",{"$nulls":3},"ผ้าปูโต๊ะ"]
[null,"โต๊ะและเก้าอี้",{"$nulls":3},"พนักงานและเงินค่าตอบแทน"]
[null,"ผลรวม",{"$f":"SUBTOTAL(109,SiteExpenses[ค่าใช้จ่ายโดยประมาณ])","v":{"v":900,"d":"฿900.00"}},{"$f":"SUBTOTAL(109,SiteExpenses[ค่าใช้จ่ายจริง])","v":{"v":300,"d":"฿300.00"}},null,"ผลรวม",{"$f":"SUBTOTAL(109,RefreshmentsExpenses[ค่าใช้จ่ายโดยประมาณ])","v":{"v":0,"d":"฿0.00"}},{"$f":"SUBTOTAL(109,RefreshmentsExpenses[ค่าใช้จ่ายจริง])","v":{"v":0,"d":"฿0.00"}}]
[]
["ใส่ค่าใช้จ่ายด้านการตกแต่งในตารางโดยเริ่มจากเซลล์ด้านขวา และค่าใช้จ่ายด้านรายการแสดงในตารางโดยเริ่มจากเซลล์ F14 คำแนะนำถัดไปอยู่ในเซลล์ A22","การตกแต่ง","ค่าใช้จ่ายโดยประมาณ","ค่าใช้จ่ายจริง",null,"รายการแสดง","ค่าใช้จ่ายโดยประมาณ","ค่าใช้จ่ายจริง"]
[null,"ดอกไม้",{"v":200,"d":"฿200.00"},{"v":50,"d":"฿50.00"},null,"ผู้แสดง"]
[null,"เทียน",{"$nulls":3},"ลำโพง"]
[null,"โคมไฟ",{"$nulls":3},"การเดินทาง"]
[null,"บอลลูน",{"$nulls":3},"โรงแรม"]
[null,"วัสดุกระดาษ",{"$nulls":3},"อื่นๆ"]
[null,"ผลรวม",{"$f":"SUBTOTAL(109,DecorationsExpenses[ค่าใช้จ่ายโดยประมาณ])","v":{"v":200,"d":"฿200.00"}},{"$f":"SUBTOTAL(109,DecorationsExpenses[ค่าใช้จ่ายจริง])","v":{"v":50,"d":"฿50.00"}},null,"ผลรวม",{"$f":"SUBTOTAL(109,ProgramExpenses[ค่าใช้จ่ายโดยประมาณ])","v":{"v":0,"d":"฿0.00"}},{"$f":"SUBTOTAL(109,ProgramExpenses[ค่าใช้จ่ายจริง])","v":{"v":0,"d":"฿0.00"}}]
[]
["ใส่ค่าใช้จ่ายด้านการประชาสัมพันธ์ในตารางโดยเริ่มจากเซลล์ด้านขวา และค่าใช้จ่ายด้านรางวัลในตารางโดยเริ่มจากเซลล์ F22 คำแนะนำถัดไปอยู่ในเซลล์ A28","การประชาสัมพันธ์","ค่าใช้จ่ายโดยประมาณ","ค่าใช้จ่ายจริง",null,"รางวัล","ค่าใช้จ่ายโดยประมาณ","ค่าใช้จ่ายจริง"]
[null,"งานกราฟิก",{"v":45,"d":"฿45.00"},{"v":45,"d":"฿45.00"},null,"สายสะพาย/โล่/ถ้วยรางวัล"]
[null,"การถ่ายสำเนา/การพิมพ์",{"$nulls":3},"ของชำร่วย"]
[null,"ค่าไปรษณีย์",{"$nulls":3},"ผลรวม",{"$f":"SUBTOTAL(109,PrizesExpenses[ค่าใช้จ่ายโดยประมาณ])","v":{"v":0,"d":"฿0.00"}},{"$f":"SUBTOTAL(109,PrizesExpenses[ค่าใช้จ่ายจริง])","v":{"v":0,"d":"฿0.00"}}]
[null,"ผลรวม",{"$f":"SUBTOTAL(109,PublicityExpenses[ค่าใช้จ่ายโดยประมาณ])","v":{"v":45,"d":"฿45.00"}},{"$f":"SUBTOTAL(109,PublicityExpenses[ค่าใช้จ่ายจริง])","v":{"v":45,"d":"฿45.00"}}]
[]
["ใส่ค่าใช้จ่ายเบ็ดเตล็ดในตารางโดยเริ่มจากเซลล์ด้านขวา","เบ็ดเตล็ด","ค่าใช้จ่ายโดยประมาณ","ค่าใช้จ่ายจริง"]
[null,"โทรศัพท์"]
[null,"พาหนะเดินทาง"]
[null,"อุปกรณ์เครื่องเขียน"]
[null,"บริการโทรสาร"]
[null,"ผลรวม",{"$f":"SUBTOTAL(109,MiscellaneousExpenses[ค่าใช้จ่ายโดยประมาณ])","v":{"v":0,"d":"฿0.00"}},{"$f":"SUBTOTAL(109,MiscellaneousExpenses[ค่าใช้จ่ายจริง])","v":{"v":0,"d":"฿0.00"}}]

{"sheet":"รายได้","index":2,"n_rows":30,"n_cols":7,"rows_kept":30,"merged":[[1,1,1,6],[2,5,2,6]]}
["ใส่รายได้โดยประมาณและรายได้จริงสำหรับแต่ละประเภทในตารางที่สอดคล้องกันในเวิร์กชีตนี้ รายได้ทั้งหมดจะถูกคำนวณโดยอัตโนมัติ คำแนะนำที่เป็นประโยชน์เกี่ยวกับวิธีใช้เวิร์กชีตนี้อยู่ในเซลล์ในคอลัมน์นี้ ใช้ลูกศรลงเพื่อเริ่มต้นใช้งาน"]
["ชื่อกิจกรรมจะถูกอัปเดตในเซลล์ทางด้านขวาโดยอัตโนมัติ",{"$f":"รายจ่าย!B2","v":"งบประมาณจัดกิจกรรมสำหรับ \nชื่อกิจกรรม"}]
["ป้ายชื่อรายได้อยู่ในเซลล์ F3",{"$nulls":4}," รายได้"]
["ป้ายชื่อโดยประมาณอยู่ในเซลล์ F4 และป้ายชื่อตามที่เป็นจริงอยู่ในเซลล์ G4",{"$nulls":4},"ค่าใช้จ่ายโดยประมาณ","ตามที่เป็นจริง"]
["ป้ายชื่อรายได้ทั้งหมดอยู่ในเซลล์ทางด้านขวา รายได้ทั้งหมดโดยประมาณจะถูกคำนวณโดยอัตโนมัติในเซลล์ F5 รายได้ทั้งหมดตามจริงและแถบข้อมูลที่แสดงรายได้ทั้งหมดตามจริงจะอัปเดตโดยอัตโนมัติในเซลล์ G5","รายได้ทั้งหมด",{"$nulls":3},{"$f":"SUM(การเข้าร่วมงาน[[#Totals],[ทั้งหมดโดยประมาณ]],AdsInProgram[[#Totals],[ทั้งหมดโดยประมาณ]],ExhibitorsAndvendors[[#Totals],[ทั้งหมดโดยประมาณ]],SaleOfItem[[#Totals],[ทั้งหมดโดยประมาณ]])","v":{"v":1936,"d":"฿1,936.00"}},{"$f":"SUM(การเข้าร่วมงาน[[#Totals],[ทั้งหมดตามจริง]],AdsInProgram[[#Totals],[ทั้งหมดตามจริง]],ExhibitorsAndvendors[[#Totals],[ทั้งหมดตามจริง]],SaleOfItem[[#Totals],[ทั้งหมดตามจริง]])","v":{"v":1831,"d":"฿1,831.00"}}]
["ป้ายชื่อค่าธรรมเนียมในการเข้าอยู่ในเซลล์ด้านขวา","ค่าธรรมเนียมในการเข้า"]
["ใส่จำนวนค่าธรรมเนียมในการเข้าโดยประมาณและค่าเข้างานจริงพร้อมราคาตั๋วในตารางโดยเริ่มจากเซลล์ด้านขวา รายได้โดยประมาณและรายได้จริงจากค่าธรรมเนียมในการเข้าจะคำนวณโดยอัตโนมัติ คำแนะนำถัดไปอยู่ในเซลล์ A12","ค่าใช้จ่ายโดยประมาณ","ค่าใช้จ่ายจริง","ประเภท","ราคา","ทั้งหมดโดยประมาณ","ทั้งหมดตามจริง"]
[null,300,278,"ผู้ใหญ่ @",{"v":5,"d":"฿5.00"},{"$f":"B8*E8","v":{"v":1500,"d":"฿1,500.00"}},{"$f":"C8*E8","v":{"v":1390,"d":"฿1,390.00"}}]
[null,197,195,"เด็ก @",{"v":2,"d":"฿2.00"},{"$f":"B9*E9","v":{"v":394,"d":"฿394.00"}},{"$f":"C9*E9","v":{"v":390,"d":"฿390.00"}}]
[null,42,51,"อื่นๆ @",{"v":1,"d":"฿1.00"},{"v":42,"d":"฿42.00"},{"v":51,"d":"฿51.00"}]
[null," ",{"$nulls":3},{"$f":"SUBTOTAL(109,การเข้าร่วมงาน[ทั้งหมดโดยประมาณ])","v":{"v":1936,"d":"฿1,936.00"}},{"$f":"SUBTOTAL(109,การเข้าร่วมงาน[ทั้งหมดตามจริง])","v":{"v":1831,"d":"฿1,831.00"}}]
["ป้ายชื่อโฆษณาในรายการแสดงอยู่ในเซลล์ด้านขวา","โฆษณาในรายการแสดง"]
["ใส่จำนวนโฆษณาโดยประมาณและจำนวนโฆษณาจริงในรายการแสดงและราคาโฆษณาในตารางโดยเริ่มจากเซลล์ด้านขวา รายได้โดยประมาณและรายได้จริงจากโฆษณาจะคำนวณโดยอัตโนมัติ คำแนะนำถัดไปอยู่ในเซลล์ A18","ค่าใช้จ่ายโดยประมาณ","ค่าใช้จ่ายจริง","ประเภท","ราคา","ทั้งหมดโดยประมาณ","ทั้งหมดตามจริง"]
[{"$nulls":3},"ใบประหน้า @",null,{"$f":"B14*E14","v":{"v":0,"d":"฿0.00"}},{"$f":"C14*E14","v":{"v":0,"d":"฿0.00"}}]
[{"$nulls":3},"ครึ่งหน้า @",null,{"$f":"B15*E15","v":{"v":0,"d":"฿0.00"}},{"$f":"C15*E15","v":{"v":0,"d":"฿0.00"}}]
[{"$nulls":3},"1/4 หน้า @",null,{"v":0,"d":"฿0.00"},{"v":0,"d":"฿0.00"}]
[null," ",{"$nulls":3},{"$f":"SUBTOTAL(109,AdsInProgram[ทั้งหมดโดยประมาณ])","v":{"v":0,"d":"฿0.00"}},{"$f":"SUBTOTAL(109,AdsInProgram[ทั้งหมดตามจริง])","v":{"v":0,"d":"฿0.00"}}]
["ป้ายชื่อผู้จัดแสดงนิทรรศการหรือผู้จัดจำหน่ายอยู่ในเซลล์ด้านขวา","ผู้จัดแสดงนิทรรศการ/ผู้จัดจำหน่าย"]
["ใส่จำนวนผู้จัดแสดงนิทรรศการและผู้จัดจำหน่ายโดยประมาณและจำนวนจริง และราคาบูธในตารางโดยเริ่มจากเซลล์ด้านขวา รายได้โดยประมาณและรายได้จริงจะคำนวณโดยอัตโนมัติ คำแนะนำถัดไปจะอยู่ในเซลล์ A24","ค่าใช้จ่ายโดยประมาณ","ค่าใช้จ่ายจริง","ประเภท","ราคา","ทั้งหมดโดยประมาณ","ทั้งหมดตามจริง"]
[{"$nulls":3},"บูธขนาดใหญ่ @",null,{"$f":"B20*E20","v":{"v":0,"d":"฿0.00"}},{"$f":"C20*E20","v":{"v":0,"d":"฿0.00"}}]
[{"$nulls":3},"บูธขนาดกลาง @",null,{"$f":"B21*E21","v":{"v":0,"d":"฿0.00"}},{"$f":"C21*E21","v":{"v":0,"d":"฿0.00"}}]
[{"$nulls":3},"บูธขนาดเล็ก @",null,{"v":0,"d":"฿0.00"},{"v":0,"d":"฿0.00"}]
[null," ",{"$nulls":3},{"$f":"SUBTOTAL(109,ExhibitorsAndvendors[ทั้งหมดโดยประมาณ])","v":{"v":0,"d":"฿0.00"}},{"$f":"SUBTOTAL(109,ExhibitorsAndvendors[ทั้งหมดตามจริง])","v":{"v":0,"d":"฿0.00"}}]
["ป้ายชื่อยอดขายสินค้าอยู่ในเซลล์ด้านขวา","ยอดขายสินค้า"]
["ใส่จำนวนสินค้าที่ขายโดยประมาณและจำนวนจริง และราคาสินค้าในตารางโดยเริ่มจากเซลล์ด้านขวา รายได้โดยประมาณและรายได้จริงจะคำนวณโดยอัตโนมัติ","ค่าใช้จ่ายโดยประมาณ","ค่าใช้จ่ายจริง","ประเภท","ราคา","ทั้งหมดโดยประมาณ","ทั้งหมดตามจริง"]
[{"$nulls":3},"สินค้า @",null,{"$f":"B26*E26","v":{"v":0,"d":"฿0.00"}},{"$f":"C26*E26","v":{"v":0,"d":"฿0.00"}}]
[{"$nulls":3},"สินค้า @",null,{"$f":"B27*E27","v":{"v":0,"d":"฿0.00"}},{"$f":"C27*E27","v":{"v":0,"d":"฿0.00"}}]
[{"$nulls":3},"สินค้า @",null,{"v":0,"d":"฿0.00"},{"v":0,"d":"฿0.00"}]
[{"$nulls":3},"สินค้า @",null,{"v":0,"d":"฿0.00"},{"v":0,"d":"฿0.00"}]
[null," ",{"$nulls":3},{"$f":"SUBTOTAL(109,SaleOfItem[ทั้งหมดโดยประมาณ])","v":{"v":0,"d":"฿0.00"}},{"$f":"SUBTOTAL(109,SaleOfItem[ทั้งหมดตามจริง])","v":{"v":0,"d":"฿0.00"}}]

{"sheet":"สรุป","index":3,"n_rows":9,"n_cols":4,"rows_kept":9,"merged":[[1,1,1,3],[2,2,2,3],[8,1,8,4],[9,1,9,3]]}
["สรุปและแผนภูมิของกำไรขาดทุนที่แสดงรายได้และค่าใช้จ่ายทั้งหมดจะอัปเดตโดยอัตโนมัติในเวิร์กชีตนี้ คำแนะนำที่เป็นประโยชน์เกี่ยวกับวิธีใช้เวิร์กชีตนี้อยู่ในเซลล์ในคอลัมน์นี้ ใช้ลูกศรลงเพื่อเริ่มต้นใช้งาน"]
["ชื่อกิจกรรมจะถูกอัปเดตในเซลล์ทางด้านขวาโดยอัตโนมัติ",{"$f":"รายจ่าย!B2","v":"งบประมาณจัดกิจกรรมสำหรับ \nชื่อกิจกรรม"}]
["ป้ายชื่อสรุปกำไรขาดทุนอยู่ในเซลล์ C3 คำแนะนำถัดไปอยู่ในเซลล์ A5",null,"สรุปกำไรขาดทุน"]
[]
["ตารางผลรวมที่เริ่มต้นจากเซลล์ด้านขวาจะอัปเดตโดยอัตโนมัติ คำแนะนำถัดไปอยู่ในเซลล์ A9","ผลรวม","ค่าใช้จ่ายโดยประมาณ","ตามที่เป็นจริง"]
[null,"รายได้ทั้งหมด",{"$f":"รายได้!F5","v":{"v":1936,"d":"฿1,936.00"}},{"$f":"รายได้!G5","v":{"v":1831,"d":"฿1,831.00"}}]
[null,"ค่าใช้จ่ายทั้งหมด",{"$f":"รายจ่าย!G5","v":{"v":1145,"d":"฿1,145.00"}},{"$f":"รายจ่าย!H5","v":{"v":395,"d":"฿395.00"}}]
[null,"ผลกำไร (หรือขาดทุน)",{"$f":"C6-C7","v":{"v":791,"d":"฿791.00"}},{"$f":"D6-D7","v":{"v":1436,"d":"฿1,436.00"}}]
["แผนภูมิคอลัมน์แบบกลุ่มที่แสดงการเปรียบเทียบรายได้ทั้งหมดโดยประมาณและตามจริงและค่าใช้จ่ายทั้งหมดอยู่ในเซลล์ด้านขวา","แผนภูมิคอลัมน์แบบกลุ่มที่แสดงการเปรียบเทียบรายได้ทั้งหมดโดยประมาณและตามจริงและค่าใช้จ่ายทั้งหมดอยู่ในเซลล์นี้"]